Cogmind - Beta 11 @@@ ROGUE MODE // 2022.03.17 @ 00:03:18 Player: Thr33_1Nt Result: Destroyed by D-53 Grenadier with Mini Grenade Launcher Performance ------------- Evolutions (1) 500 Regions Visited (4) 800 Robots Destroyed (49) 245 Value Destroyed (1412) 1412 Prototype IDs (5) 100 Alien Tech Used (0) 0 Bonus (119) 119 TOTAL SCORE: 3176 Bonus ------- High Alert Combat Kills 44 Follower Combat Kills 75 Cogmind --------- Core Integrity 0/400 Matter 300/300 Energy 271/280 System Corruption 0% Temperature Cool (0) Movement Core (400) Ox7 Location -9/Mines Parts ------- > --- POWER (1) -------- Heavy Ion Engine > --- PROPULSION (3) --- (None) > --- UTILITY (3) ------ Improved Heat Sink Medium Storage Unit Seismic Detector > --- WEAPON (2) ------- Beam Rifle > --- INVENTORY (10) --- Heavy Ion Engine Aluminum Leg Aluminum Leg Compact Wheel Beam Rifle Spread Laser Flak Cannon Rocket Launcher Heavy Hammer Peak State ------------ > --- POWER ------------ Heavy Ion Engine > --- PROPULSION ------- Aluminum Leg Aluminum Leg Aluminum Leg > --- UTILITY ---------- Improved Heat Sink Medium Storage Unit Light Armor Plating > --- WEAPON ----------- Improved EM Shotgun Improved EM Shotgun > --- INVENTORY -------- Heavy Ion Engine Heavy Ion Engine Aluminum Leg Aluminum Leg Compact Wheel Seismic Detector Flak Cannon Flak Cannon Flak Cannon Rocket Launcher [Rating: 19] Favorites ----------- Power Ion Engine Engine Ion Engine Power Core Light Nuclear Core Propulsion Aluminum Leg Leg Aluminum Leg Utility Medium Storage Unit Device Seismic Detector Storage Medium Storage Unit Protection Light Armor Plating Weapon Assault Rifle Energy Gun Improved EM Shotgun Ballistic Gun Assault Rifle Ballistic Cannon Assault Cannon Launcher Rocket Launcher Build | -11 -10 -10 -9 -9 ------- Run | Scr Mat Min Mat Min Slots Evolved 2 | . . . 2 . Power . | . . . . . Propulsion 1 | . . . 1 . Utility 1 | . . . 1 . Weapon . | . . . . . Parts Attached 74 | 8 11 9 41 5 Power 5 | 1 1 1 2 . Engine 4 | 1 1 . 2 . Core 1 | . . 1 . . Reactor . | . . . . . Propulsion 23 | 2 5 6 8 2 Treads . | . . . . . Leg 23 | 2 5 6 8 2 Wheel . | . . . . . Hover . | . . . . . Flight . | . . . . . Utility 29 | 3 2 . 21 3 Device 21 | 2 1 . 15 3 Storage 3 | 1 1 . 1 . Processor . | . . . . . Hackware . | . . . . . Protection 5 | . . . 5 . Artifact . | . . . . . Weapon 17 | 2 3 2 10 . Energy Gun 10 | 1 1 1 7 . Energy Cannon . | . . . . . Ballistic Gun 4 | 1 2 . 1 . Ballistic Cannon 1 | . . 1 . . Launcher 2 | . . . 2 . Special Weapon . | . . . . . Impact Weapon . | . . . . . Slashing Weapon . | . . . . . Piercing Weapon . | . . . . . Special Melee Weapon . | . . . . . Unidentified Prototypes . | . . . . . Parts Lost 5 | . . . . 5 Power . | . . . . . Propulsion 3 | . . . . 3 Utility 1 | . . . . 1 Weapon 1 | . . . . 1 Highest Loss Streak 5 | . . . . 5 To Critical Strikes . | . . . . . Average Slot Usage (%) 99 | . 99 99 99 95 Engine 10 | . 14 10 9 11 Core 1 | . . 3 1 . Leg 30 | . 27 28 32 30 Device 14 | . 14 14 15 12 Storage 12 | . 14 14 11 11 Protection 3 | . . . 6 8 Energy Gun 12 | . 4 3 20 22 Ballistic Gun 8 | . 23 11 . . Ballistic Cannon 3 | . . 12 1 . Naked Turns . | . . . . . Heaviest Build 28 | 14 20 24 28 28 Greatest Support 33 | 20 20 25 33 33 Greatest Overweight (x) 1 | . . 1 1 . Average Overweight (x) . | . . . . . Largest Inventory Capacity 10 | 8 10 10 10 10 Average Capacity 9 | 7 9 10 10 10 Most Carried 10 | 8 10 10 10 10 Average Carried 9 | 5 9 9 9 9 Final Capacity 10 | 8 10 10 10 10 Final Carried 10 | 8 10 10 10 9 Class Distribution -------------------- 53% | Scavenger-Mutant 46% | Mutant Dominant Class ---------------- Mutant | -10/Materials Mutant | -10/Mines Scavenger-Mutant | -9/Materials Scavenger-Mutant | -9/Mines Resources | -11 -10 -10 -9 -9 ----------- Run | Scr Mat Min Mat Min Matter Collected 1307 | 281 347 206 433 40 Remotely . | . . . . . Salvage Created 1733 | 57 510 162 870 134 Parts 114 | 8 20 8 70 8 Haulers Intercepted 2 | . . . 2 . Recyclers Shooed 1 | . 1 . . . Parts Field Recycled . | . . . . . Retrieved Matter . | . . . . . Parts Self-Destructed . | . . . . . Prevented . | . . . . . Kills | -11 -10 -10 -9 -9 ------- Run | Scr Mat Min Mat Min Combat Hostiles Destroyed 38 | . 9 4 22 3 Guns 32 | . 9 4 16 3 AOE 6 | . . . 6 . Classes Destroyed 10 | 1 3 . 6 . Worker 1 | . . . 1 . Tunneler 3 | 3 . . . . Hauler 2 | . . . 2 . Recycler 1 | . 1 . . . Operator 1 | . 1 . . . Watcher 3 | . . . 3 . Swarmer 6 | . . . 6 . Grunt 23 | . 9 4 7 3 Brawler 1 | . . . 1 . Sentry 8 | . . . 8 . Best Kill Streak 4 | 2 3 4 4 3 Combat Bots Only 4 | . 3 4 3 3 Max Kills in Single Turn 3 | 1 1 1 3 1 Gunslinging . | . . . . . Exploded 3 | . . . 3 . Melee . | . . . . . Uniques/NPCs Destroyed . | . . . . . Combat | -11 -10 -10 -9 -9 -------- Run | Scr Mat Min Mat Min Damage Taken 2033 | . 414 191 504 924 Core 530 | . 86 44 73 327 Absorbed by Shields 23 | . . . 23 . Regen/Repaired (Parts) 30 | . 30 . . . Core Remaining (%) 74 | 100 . 48 . . Volleys Fired 126 | 8 45 12 50 11 Largest 2 | 2 2 2 2 2 Hottest 130 | 60 70 64 130 101 Shots Fired 252 | 16 90 24 100 22 Gun 237 | 16 90 12 97 22 Cannon 12 | . . 12 . . Launcher 3 | . . . 3 . Special . | . . . . . Kinetic 110 | 8 78 24 . . Thermal 100 | 8 12 . 69 11 Explosive 3 | . . . 3 . Electromagnetic 39 | . . . 28 11 Robot Hit Streak 16 | 8 12 8 16 3 Robot Miss Streak 5 | 2 3 3 5 3 Penetration Max . | . . . . . Secondary Targets . | . . . . . Shots Hit Robots 175 | 13 53 16 76 17 Core Hits 122 | 4 25 7 75 11 Critical Kills . | . . . . . Critical Parts Destroyed . | . . . . . Critical Strikes 3 | . 1 1 . 1 Burn 2 | . 1 . . 1 Blast 1 | . . 1 . . Melee Attacks . | . . . . . Impact . | . . . . . Slashing . | . . . . . Piercing . | . . . . . Sneak Attacks . | . . . . . Combat Hostiles . | . . . . . Follow-up Attacks . | . . . . . Damage Inflicted 2922 | 149 689 330 1497 257 Guns 2398 | 149 689 139 1164 257 Cannons 191 | . . 191 . . Explosions 332 | . . . 332 . Melee . | . . . . . Ramming 1 | . . . 1 . Kinetic 1005 | 87 588 330 . . Thermal 1081 | 62 101 . 786 132 Explosive 300 | . . . 300 . Electromagnetic 535 | . . . 410 125 Impact . | . . . . . Slashing . | . . . . . Piercing . | . . . . . Highest Corruption . | . . . . . Average Corruption . | . . . . . Corruption Purged . | . . . . . Corruption Blocked . | . . . . . Overload Shots . | . . . . . Overflow Damage 27 | . . . 27 . Projectiles . | . . . . . Explosions 27 | . . . 27 . Melee . | . . . . . Knockbacks 3 | . . 3 . . Impact . | . . . . . Kinetic 3 | . . 3 . . Secondary . | . . . . . Self-Inflicted Damage 22 | . . . 22 . Shots 1 | . . . 1 . Rammed . | . . . . . Targets Rammed 2 | . . . 2 . Kicked 2 | . . . 2 . Crushed . | . . . . . Highest Temperature 201 | . 93 45 201 48 Average Temperature 38 | . 36 22 45 28 Received Heat Transfer 586 | . 252 102 178 54 Siege Activations . | . . . . . Robots Corrupted . | . . . . . Combat Hostiles . | . . . . . Parts Fried 3 | . . . 3 . Impact Corruptions . | . . . . . Robots Melted . | . . . . . Combat Hostiles . | . . . . . Parts Melted 1 | . . . 1 . Heat Transferred 2279 | 150 311 . 1411 407 Parts Sabotaged . | . . . . . Parts Stolen . | . . . . . Parts Stripped . | . . . . . Power Chain Reactions 1 | . . . 1 . Missiles Intercepted . | . . . . . Alert | -11 -10 -10 -9 -9 ------- Run | Scr Mat Min Mat Min Peak Influence 508 | 15 185 152 508 239 Initial 154 | . 9 37 . 154 Average 141 | 7 59 68 227 218 Maximum Alert Level 2 | . . . 2 1 Low Security (%) 73 | 100 100 100 49 14 Level 1 18 | . . . 34 85 Level 2 7 | . . . 16 . Level 3 . | . . . . . Level 4 . | . . . . . Level 5 . | . . . . . High Security . | . . . . . Max Security . | . . . . . Squads Dispatched 6 | . 4 1 1 . Investigation . | . . . . . Extermination . | . . . . . Reinforcement 5 | . 4 . 1 . Assault 1 | . . 1 . . Garrison . | . . . . . Intercept . | . . . . . Searches Triggered . | . . . . . Construction Impeded . | . . . . . Haulers Reinforced . | . . . . . Active Scanning Responses . | . . . . . Cargo Convoy Interrupts . | . . . . . Stealth | -11 -10 -10 -9 -9 --------- Run | Scr Mat Min Mat Min Distress Signals 1 | . . 1 . . Communications Jammed . | . . . . . Distress Signals . | . . . . . Times Spotted 60 | . 23 4 28 5 Peak Tracking Total 5 | . 3 2 5 3 Tactical Retreats 1 | . . . 1 . Traps | -11 -10 -10 -9 -9 ------- Run | Scr Mat Min Mat Min Traps Triggered 2 | . . 1 1 . Indirectly . | . . . . . Trap Hack Attempts . | . . . . . Triggered . | . . . . . Disarmed . | . . . . . Reprogrammed . | . . . . . Reused . | . . . . . Traps Extracted . | . . . . . Installed . | . . . . . Triggered . | . . . . . Machines | -11 -10 -10 -9 -9 ---------- Run | Scr Mat Min Mat Min Machines Disabled . | . . . . . Max in Single Turn . | . . . . . Machines Sabotaged . | . . . . . Garrisons Compromised . | . . . . . Overloaded Fab Kills . | . . . . . Hacking | -11 -10 -10 -9 -9 --------- Run | Scr Mat Min Mat Min Machines Accessed 18 | . 5 1 12 . Terminals 13 | . 4 . 9 . Fabricators . | . . . . . Repair Stations 2 | . 1 . 1 . Recycling Units . | . . . . . Scanalyzers 2 | . . . 2 . Garrison Access . | . . . . . Total Hacks 61 | . 17 1 43 . Successful 39 | . 9 1 29 . Failed 21 | . 8 . 13 . Catastrophic 6 | . 3 . 3 . Database Lockouts 1 | . . . 1 . Manual 32 | . 13 . 19 . Terminals 45 | . 14 . 31 . Fabricators . | . . . . . Repair Stations 6 | . 3 . 3 . Recycling Units . | . . . . . Scanalyzers 9 | . . . 9 . Garrison Access . | . . . . . Terminal Hacks 27 | . 7 1 19 . Record 1 | . . . 1 . Robot Analysis 2 | . 2 . . . Prototype ID Bank 3 | . . . 3 . Open Door 1 | . . 1 . . Level Access Points 1 | . . . 1 . Branch Access Points 1 | . . . 1 . Unreport Threat 4 | . 2 . 2 . Locate Traps 4 | . 1 . 3 . Registered Components 1 | . . . 1 . Zone Layout 9 | . 2 . 7 . Fabricator Hacks . | . . . . . Repair Station Hacks 4 | . 2 . 2 . Scan Component 3 | . 1 . 2 . Repair 1 | . 1 . . . Recycling Unit Hacks . | . . . . . Scanalyzer 8 | . . . 8 . Insert Component 4 | . . . 4 . Analyze 4 | . . . 4 . Garrison Access Hacks . | . . . . . Unauthorized Hacks . | . . . . . Terminals . | . . . . . Fabricators . | . . . . . Repair Stations . | . . . . . Recycling Units . | . . . . . Scanalyzers . | . . . . . Garrison Access . | . . . . . Data Cores Recovered . | . . . . . Used . | . . . . . Hacking Detections 16 | . 5 . 11 . Full Trace Events 3 | . 1 . 2 . Feedback Events . | . . . . . Feedback Blocked . | . . . . . Robot Schematics Acquired . | . . . . . Robots Built . | . . . . . Authchips . | . . . . . Time . | . . . . . Total Robot Build Rating . | . . . . . Part Schematics Acquired 4 | . . . 4 . Parts Built . | . . . . . Authchips . | . . . . . Time . | . . . . . Total Part Build Rating . | . . . . . Parts Repaired 1 | . 1 . . . Time 26 | . 26 . . . Parts Recycled . | . . . . . Recycled Matter . | . . . . . Retrieved Matter . | . . . . . Retrieved Components . | . . . . . Parts Scanalyzed 4 | . . . 4 . Part Schematics Acquired 4 | . . . 4 . Parts Damaged . | . . . . . Bothacking | -11 -10 -10 -9 -9 ------------ Run | Scr Mat Min Mat Min Used RIF Installer . | . . . . . Robots Hacked . | . . . . . Non-combat . | . . . . . Combat . | . . . . . Robot Hacks Applied . | . . . . . Relay Couplers Released . | . . . . . Fabnet Peak Effective % . | . . . . . Robots Rewired . | . . . . . Allies Hacked . | . . . . . Hacks Repelled . | . . . . . Allies | -11 -10 -10 -9 -9 -------- Run | Scr Mat Min Mat Min Total Allies 1 | . . 1 . . Largest Group 1 | . . 1 . . Highest-Rated Group 31 | . . 31 . . Highest-Rated Ally 31 | . . 31 . . Total Orders . | . . . . . Ally Attacks 9 | . . 9 . . Total Damage 128 | . . 128 . . Kills 3 | . . 3 . . Allies Corrupted . | . . . . . Allies Melted 1 | . . 1 . . Intel | -11 -10 -10 -9 -9 ------- Run | Scr Mat Min Mat Min Robot Analysis Total 2 | . 2 . . . Derelict Logs Recovered 1 | . . 1 . . Drone Launches . | . . . . . Drone Recoveries . | . . . . . Exploration | -11 -10 -10 -9 -9 ------------- Run | Scr Mat Min Mat Min Turns Passed 3320 | 114 774 814 1475 143 Spaces Moved 1903 | 56 376 460 926 85 Core 9 | 9 . . . . Treads . | . . . . . Legs 1894 | 47 376 460 926 85 Wheels . | . . . . . Hover . | . . . . . Flight . | . . . . . Fastest Speed 50 | 50 120 120 120 120 Average Speed 124 | 108 120 138 120 120 Slowest Speed 190 | 120 120 190 190 120 Overloaded Moves . | . . . . . Propulsion Burnouts . | . . . . . Robots Hopped . | . . . . . Cave-ins Triggered . | . . . . . Exploration Rate (%) 50 | 3 74 72 73 28 Regions Visited 4 Branch Regions 2 Pre-discovered Areas 1 | . . 1 . . Known Exits Taken 1 | . . . 1 . Unknown Exits Taken 3 | 1 1 1 . . Scrap Searched 1 | . . 1 . . Spaces Dug 16 | . . . 16 . Terrain Destroyed 34 | . . 3 31 . Melee . | . . . . . Projectile 3 | . . 3 . . AOE 31 | . . . 31 . Terrain Rammed . | . . . . . Walls Destroyed . | . . . . . Machines Disabled . | . . . . . Actions | -11 -10 -10 -9 -9 --------- Run | Scr Mat Min Mat Min Total 2624 | 89 618 619 1193 105 Wait 425 | 9 155 125 134 2 Move 1899 | 55 375 459 925 85 Hop . | . . . . . Pick Up 35 | 8 12 3 12 . Fast Attach 19 | 8 3 3 5 . Attach 3 | . . . 2 1 Detach 2 | . 2 . . . Swap 52 | . 8 6 34 4 Drop 61 | 1 18 11 29 2 Fire 126 | 8 45 12 50 11 Melee . | . . . . . Ram . | . . . . . Kick 2 | . . . 2 . Crush . | . . . . . Escape Stasis . | . . . . . Rewire . | . . . . . Trap . | . . . . . Miscellaneous . | . . . . . Route ------- -11/Scrapyard -10/Materials (discovered 2 exits: *Mat / *Min) -10/Mines -9/Materials (discovered 4 exits: *Mat x3 / *Min) -9/Mines History --------- Turn | Location | Event 6 | -11/Scrapyard | Discovered new exit (range 14) 115 | -11/Scrapyard | Entered Materials 297 | -10/Materials | Repaired Aluminum Leg 318 | -10/Materials | Build established: Mutant 332 | -10/Materials | Discovered new exit (range 10) 799 | -10/Materials | Discovered new exit (range 8) 889 | -10/Materials | Entered Mines 973 | -10/Mines | Met a Derelict who couldn't figure out how to use a Trap Extractor 1052 | -10/Mines | Received a Rocket Launcher from a helpful Derelict 1290 | -10/Mines | Met a Derelict testing a Signal Generator 1447 | -10/Mines | Core integrity fell below 50% 1654 | -10/Mines | Discovered new exit (range 12) 1703 | -10/Mines | Entered Materials 1703 | -9/Materials | Evolved 2 slots: Propulsion x1, Utility x1 1744 | -9/Materials | Build established: Scavenger-Mutant 1769 | -9/Materials | Identified exit to Mines 2110 | -9/Materials | Identified exit to Materials 2263 | -9/Materials | Central database locked down 3178 | -9/Materials | Entered Mines 3179 | -9/Mines | Assembled infested the area 3218 | -9/Mines | Met a Derelict bent on vengeance 3312 | -9/Mines | Core integrity fell below 50% 3313 | -9/Mines | Met 8R-AWN 3318 | -9/Mines | Core integrity fell below 20% 3321 | -9/Mines | Destroyed by D-53 Grenadier with Mini Grenade Launcher Last Messages --------------- 03209_ Acquired 10 matter. 03211_ Dropped Aluminum Leg. 03214_ Acquired 10 matter. 03285_ Lgt. Armor Plating destroyed. 03287_ T-07 Excavator destroyed. 03302_ K-01 Serf collects debris. 03307_ D-53 Grenadier suffers critical hit (Burn). 03309_ MA-24E(g): "UNAWARE KILLED MY BEST FRIEND! VENGEANCE!" 03309_ Aluminum Leg destroyed. 8R-AWN: Hm, I'm not getting any readings that show these Assembled are different than what we have already... But you... you look interesting. Maybe they'll want to see you. Come along little bot, it's safer with us than out here, anyway. 03315_ Aluminum Leg destroyed. 03316_ Destroyed Shock Absorption System. 03317_ The unstable cave ceiling collapses. 03317_ HV Slug penetrates D-53 Grenadier. 03317_ HV Slug penetrates Wall. 03319_ Imp. Aluminum Leg destroyed. 03321_ Imp. EM Shotgun destroyed. Map ----- +----------------------------------------------------+ | ?????????????????????????????????????????????????? | | ?????????????????????????????????????????????????? | | ?????????????????????????????????????????????????? | | ?????????????????????????????????????????????????? | | ?????????????????????????????????????????????????? | | ??????????????????????????????????????############ | | ???????? ???????????????????????????# # | | ???????? ?????????????????????????# =[# | | ???????? ????????##??#####???????# """ """%# | | ?????????? ?????## ### # ##??????# """="""=# | | ?????????????# ##### #??????# """%" "!# | | ?????????????# "%" ###????# [* !%# | | ?????????????# " #????# """ # | | ??????????????# ##???# """ # | | ??????????????## ## #???# """ # | | ??????????????????## ##??# # | | ???????????????????## #??# # | | ????????????????????## # ##??######## ## | | ?????????????????????## #### #??????????# #? | | ??????????????????????####????## ##?????????# #? | | ????????????????????#########??# ##????????# #? | | ???????????????????## #### ###??????# #? | | ???????????####### # ## ##????## #? | | ??????????? g # ###### ## | | ??????????????# d # | | ???????????????????# @ d # | | ???????????????????## ### ## | | ????????????????????# #?# ### ## | | ????????????????????## ##?# #?######### # | | ?????????????????????# #?# #?????????## # | | ????????????????????? ## #??????????## | | ????????????????????# # ???????????# # | | ????????????????????# r ???????????# # | | ????????????????????# ??????????# # | | ????????????????????# """ ??????????# # | | ???????????????????? """ #?????????# # | | ???????????????????? """ r ??????????# # | | ??????????????????? ??? g ??????????# # | | ???????????????????# ???? %% ???????????# # | | ????????????????????? ???? ?????????????????# | | ???????????????????????# ??????????????????????? | | ???????????????????????????????????????????????? # | | ???????????????????????????????????????????????? ? | | ????????????????????????????????????????????????#? | | ?????????????????????????????????????????????????? | | ?????????????????????????????????????????????????? | | ?????????????????????????????????????????????????? | | ?????????????????????????????????????????????????? | | ?????????????????????????????????????????????????? | | ?????????????????????????????????????????????????? | +----------------------------------------------------+ Best States ------------- Heat Dissipation 42 Energy Generation 14 Energy Capacity 280 Matter Stores 300 Matter Capacity 300 Sight Range 16 Terrain Scan Range 16 Terrain Scan Density 10 Armor Coverage 150 Evasion (%) 55 Item Schematics ----------------- Hvy. Ion Engine | -9/Materials | Scanalyzed Imp. Heat Sink | -9/Materials | Scanalyzed Rocket Launcher | -9/Materials | Scanalyzed Spread Laser | -9/Materials | Scanalyzed Robot Schematics ------------------ None Fabricated ------------ Nothing Alien Tech Used ----------------- None Achievements -------------- None Challenges ------------ None Game ------ Seed NullCoilGun Manual? 0 Play Time 00:51:01 Cumulative 8.7 hours Start 2022.03.16 @ 23:03:08 End 2022.03.17 @ 00:03:18 Sessions 3 Manual Loads 0 Difficulty Rogue Special Mode None Game No. 8 Rogue 8 Adventurer 0 Explorer 0 Win Type - Total 0 Types 0/0/0/0/0/0/0/0/0 Lore% 14 Gallery% 14 Achievement% 13 Wizard Run 0 Options --------- ASCII 0 Keyboard 0 Movement Numpad Keybinds 0 Fullscreen 1 Font 18/SmallcapsGlow Map View 76x50 Tactical HUD 1 Map Filters NONE Filters NONE Steam 1 RUN: d7301110-6ef2-4dae-9117-e3f3c3161080